[Event "13th Asrian Memorial 2022"]
[Site "Yerevan"]
[Date "2022.06.09"]
[Round "3.6"]
[White "Mahdavi, Reza"]
[Black "Shahinyan, David"]
[Result "0-1"]
[ECO "C11"]
[WhiteElo "2303"]
[BlackElo "2479"]
[Annotator "TA"]
[PlyCount "76"]
[EventDate "2022.06.07"]
[EventType "swiss"]
[EventCountry "ARM"]
[SourceTitle "playchess.com"]
[Source "ChessBase"]
[SourceQuality "1"]
[TimeControl "40/5400+30:1800+30"]

{[%evp 9,76,29,24,22,26,25,14,17,23,29,22,23,20,0,0,4,0,0,0,-14,0,0,0,0,-4,-20,0,-10,-25,-25,0,0,-4,0,0,0,0,0,0,0,0,0,0,-8,-39,-170,-39,-87,-20,-152,-154,-221,-217,-229,-220,-224,-227,-217,-212,-323,-312,-543,-509,-784,-782,-1390,-1202,-1481,-1382]} 1. e4 {[%emt 0:00:02]} e6 {[%emt 0:00:51]} 2. d4 {[%emt 0:00:09]} d5 {[%emt 0:00:12]} 3. Nc3 {[%emt 0:00:05]} Nf6 {[%emt 0:00:06]} 4. e5 {[%emt 0:00:07]} Ng8 {[%emt 0:00:02]} 5. f4 {[%emt 0:04:13]} c5 {[%emt 0:00:10]} 6. Nf3 {[%emt 0:00:08] C11: French: Classical System: 4 e5 and 4 Bg5 dxe4.} Nh6 {[%emt 0:00:04]} 7. Be3 {[%emt 0:01:03]} Nf5 {[%emt 0:00:25]} 8. Bf2 {[%emt 0:00:42] The position is equal.} cxd4 {[%emt 0:00:33]} 9. Nxd4 {[%emt 0:00:10]} Nxd4 {[%emt 0:00:03]} 10. Qxd4 {[%emt 0:01:32]} Nc6 {[%emt 0:00:04]} 11. Qd2 {[%emt 0:01:37]} Bb4 $1 {[%emt 0:00:05] [#] Strongly threatening ...d4.} 12. a3 {[%emt 0:05:34] [#]} Qa5 $146 {[%emt 0:00:21]} ({Predecessor:} 12... Ba5 13. b4 Bb6 14. Bd3 O-O 15. O-O f6 16. exf6 Rxf6 17. Na4 Bxf2+ 18. Qxf2 Bd7 {0-1 (48) Pham,K (2198)-Admiraal,M (2507) Maastricht 2019}) 13. Rd1 {[%emt 0:00:19]} Bxc3 {[%emt 0:02:02]} 14. bxc3 {[%emt 0:00:02]} b6 {[%emt 0:13:41]} 15. c4 {[%emt 0:01:14][%cal Rc4d5]} dxc4 {[%emt 0:01:11]} 16. Bxc4 {[%emt 0:00:29] Black must now prevent Qxa5.} O-O {[%emt 0:00:03]} 17. O-O {[%emt 0:18:54]} Qxa3 {[%emt 0:01:25]} 18. Bd3 {[%emt 0:08:32] A strong pair of Bishops.} Bb7 {[%emt 0:18:59]} 19. Qe3 {[%emt 0:00:30][%cal Od3h7]} g6 {[%emt 0:06:10]} 20. h4 {[%emt 0:22:00][%cal Oh4h5]} Nb4 {[%emt 0:13:02]} 21. h5 $1 {[%emt 0:04:01]} Qc3 {[%emt 0:13:45]} ({Reject} 21... Nxd3 $6 22. Rxd3 Qa4 23. Rc1 $17) 22. Qh3 {[%emt 0:09:50]} Rfe8 {[%emt 0:12:12]} (22... Nxc2 $2 23. Rc1 Rfd8 24. Rfd1 $18 (24. Bxc2 Qxh3 25. gxh3 b5 $16)) 23. hxg6 {[%emt 0:15:20]} fxg6 {[%emt 0:00:09]} 24. Be1 {[%emt 0:00:34]} Qc5+ {[%emt 0:02:23]} 25. Bf2 {[%emt 0:01:54]} Qc6 {[%emt 0:01:29]} 26. Be2 {[%emt 0:02:39][%cal Of4f5] f5! is the strong threat.} Nd5 {[%emt 0:01:12]} (26... Nxc2 $2 27. Rd6 Qa4 28. Rxe6 $16) 27. Qh4 {[%emt 0:01:37]} (27. Bf3 $15) 27... Rf8 {[%emt 0:04:06]} ({Black should play} 27... Qxc2 $19 28. Bf3 Qc7) 28. Bf3 $15 Qxc2 {[%emt 0:00:09]} (28... Qc8 $17 29. Bg4 b5) 29. Rc1 {[%emt 0:00:45]} (29. f5 $1 $11) 29... Qf5 $17 {[%emt 0:00:40]} 30. Bxd5 {[%emt 0:00:52]} (30. Rcd1 $17) 30... Bxd5 $40 {[%emt 0:00:11][%mdl 128] Black goes for the king.} 31. Rc7 {[%emt 0:00:09][%csl Gc7][%cal Rh4h7]} Rf7 {[%emt 0:00:12]} 32. Rxf7 {[%emt 0:00:14]} Qxf7 {[%emt 0:00:05]} 33. Rc1 {[%emt 0:00:47]} b5 {[%emt 0:01:11][%cal Bb6b5,Bb5b4][%mdl 32]} 34. f5 {[%emt 0:00:20]} (34. Bc5 $142) 34... gxf5 {[%emt 0:01:48][%cal Bg6f5,Bf5f4][%mdl 32] And now ...Qg6 would win.} ({Don't blunder} 34... exf5 $2 35. Rc5 $19) 35. Rc3 $2 {[%emt 0:00:38] [#]} (35. Be1 {might work better.}) 35... f4 $1 {[%emt 0:00:10] Black is clearly winning.} 36. Qh2 {[%emt 0:00:56]} (36. Qh3 $142) 36... b4 {[%emt 0:00:32]} 37. Rc2 {[%emt 0:00:28]} Qg6 {[%emt 0:01:07]} 38. Rb2 {[%emt 0:00:14]} Rc8 {[%emt 0:00:10] Weighted Error Value: White=0.55/Black=0.14 (very precise)} 0-1

[Event "13th Asrian Memorial 2022"]
[Site "Yerevan"]
[Date "2022.06.09"]
[Round "3.7"]
[White "Zarubitski, Viachaslau"]
[Black "Davtyan, Arsen"]
[Result "0-1"]
[ECO "A13"]
[WhiteElo "2457"]
[BlackElo "2308"]
[Annotator "TA"]
[PlyCount "126"]
[EventDate "2022.06.07"]
[EventType "swiss"]
[EventCountry "ARM"]
[SourceTitle "playchess.com"]
[Source "ChessBase"]
[SourceQuality "1"]
[TimeControl "40/5400+30:1800+30"]

{[%evp 9,126,7,16,6,0,1,0,2,3,0,6,0,32,0,0,0,6,0,0,0,0,-12,0,-9,29,29,34,27,26,22,28,31,29,11,9,2,81,69,84,90,72,81,93,122,173,93,120,0,0,0,0,0,0,0,0,0,0,-194,-193,-449,-435,-397,-367,-336,-163,-135,-48,-39,-52,-175,-195,-168,0,0,279,0,0,0,0,0,0,0,0,0,0,0,0,0,0,0,77,77,45,0,0,0,51,50,48,64,49,0,0,0,47,0,0,0,13,0,0,0,0,-29971,-29974,-473,-29973,-29994,-29995]} 1. c4 {[%emt 0:01:10]} Nf6 {[%emt 0:00:15]} 2. Nf3 {[%emt 0:00:12]} e6 {[%emt 0:00:32]} 3. b3 {[%emt 0:02:01]} d5 {[%emt 0:01:47]} 4. Bb2 {[%emt 0:00:14]} Be7 {[%emt 0:00:09]} 5. e3 {[%emt 0:00:20]} b6 {[%emt 0:00:43]} 6. Nc3 {[%emt 0:00:18] A13: English Opening: 1...e6.} Bb7 {[%emt 0:00:28]} 7. cxd5 {[%emt 0:00:47]} exd5 {[%emt 0:00:11]} 8. Be2 {[%emt 0:00:12] The position is equal.} O-O {[%emt 0:01:18]} 9. O-O {[%emt 0:00:07]} Nbd7 {[%emt 0:03:28]} 10. Rc1 {[%emt 0:00:58]} Nc5 {[%emt 0:03:38] [#]} 11. d3 $146 {[%emt 0:07:20]} ({Predecessor:} 11. Nd4 Nfe4 12. Qc2 Bf6 13. Nxe4 dxe4 14. b4 Nd3 15. Bxd3 exd3 16. Qxc7 Qd5 17. Qg3 Qxa2 {½-½ (32) Zhao,I (1975)-Jayakumaar,S (2254) Ahmedabad 2017}) 11... Ne6 {[%emt 0:02:10]} 12. d4 {[%emt 0:01:33]} c5 {[%emt 0:02:56]} 13. dxc5 {[%emt 0:13:21]} bxc5 {[%emt 0:00:37]} 14. Na4 {[%emt 0:03:01]} Rc8 {[%emt 0:02:55]} 15. Qc2 {[%emt 0:10:36]} Ne4 {[%emt 0:11:56]} 16. Rfd1 {[%emt 0:00:44]} Qa5 {[%emt 0:07:04]} 17. Bd3 {[%emt 0:13:28]} f5 {[%emt 0:08:48]} 18. Ne5 {[%emt 0:00:15][%cal Oe5c4]} Qc7 {[%emt 0:01:10]} 19. Bb5 {[%emt 0:17:18]} Rfd8 {[%emt 0:10:07] Prevents Bd7.} 20. f3 {[%emt 0:01:03]} Nd6 {[%emt 0:00:15]} 21. Bf1 {[%emt 0:00:09]} (21. Bd3 $5 {[%cal Rd3f5]} Rf8 22. g4 $14) 21... Bg5 {[%emt 0:02:15]} 22. f4 {[%emt 0:05:57]} Be7 {[%emt 0:01:01]} (22... Bf6 $11) 23. Nc3 {[%emt 0:02:13]} Ne4 $1 {[%emt 0:03:44]} 24. g4 {[%emt 0:08:30]} Bh4 {[%emt 0:15:21]} 25. Nxe4 {[%emt 0:01:32]} (25. gxf5 Bf2+ 26. Kh1 Nxc3 27. Bxc3 d4+ 28. e4 Nxf4 $1 $15) (25. Nb5 Qe7 26. Nxa7 (26. gxf5 $2 Bf2+ 27. Kg2 Bxe3 $19) 26... Bf2+ 27. Qxf2 (27. Kh1 $2 Bxe3 28. Nxc8 Rxc8 $19) 27... Nxf2 28. Nxc8 Qh4 29. Ne7+ (29. Nf3 $2 Nh3+ 30. Bxh3 Qxh3 $19) 29... Qxe7 $19) 25... fxe4 {[%emt 0:00:05]} 26. g5 {[%emt 0:00:17] Against Bf6} d4 {[%emt 0:05:37]} (26... Nxg5 $16 27. fxg5 Bxg5) 27. Bh3 {[%emt 0:02:06]} (27. Qg2 $18 Bxg5 28. Qg4 (28. Bc4 Bd5 $11)) 27... Qe7 {[%emt 0:06:54][%cal Oh4g5]} 28. Qe2 {[%emt 0:03:56]} (28. b4 $1 $16) 28... Nxg5 $11 {[%emt 0:00:04]} 29. Bxc8 {[%emt 0:00:34]} Nf3+ $1 {[%emt 0:02:16]} 30. Kh1 $1 (30. Nxf3 $2 exf3 31. Qd3 (31. Qc4+ $2 Bd5 $19) 31... f2+ 32. Kf1 Bxc8 $19) 30... d3 $1 {[%emt 0:02:23]} 31. Be6+ $1 {[%emt 0:03:26]} Qxe6 {[%emt 0:00:13]} 32. Qg2 Bf6 {[%emt 0:07:46] This bishop pair is nice.} 33. Nc4 $2 (33. Rxc5 $11 {and White is okay.} Rc8 34. Rxc8+ (34. Nxd3 $2 Nh4 $19) 34... Qxc8 35. Rc1 (35. Nxd3 $2 Nh4 $19)) 33... Bxb2 $19 34. Nxb2 (34. Qxb2 Rd5 35. Rd2) 34... Rd5 35. Rg1 {[%emt 0:02:07][%csl Gg1][%cal Rg2g7]} Qh6 {[%emt 0:00:12] Active counter play!} (35... Nxg1 36. Rxg1 g6 37. Nc4 $17) 36. Qg3 {[%emt 0:00:44]} Rh5 {[%emt 0:01:57]} (36... Nxg1 $2 37. Rxg1 Ba6 38. Qg4 $19) (36... d2 $142 37. Rcd1 Nxg1 38. Rxg1 Qf6) 37. Rg2 {[%emt 0:00:06][%cal Of4f5]} Nh4 {[%emt 0:00:32]} (37... Ba6 $17 38. Qf2 Qf6) 38. f5 $1 $15 {[%emt 0:00:36]} Rxf5 {[%emt 0:00:23]} 39. Rf2 {[%emt 0:00:47]} (39. Qb8+ $15 Rf8 40. Qxb7 Nxg2 41. Qxe4 Nxe3 42. Nxd3) 39... Rxf2 $19 {[%emt 0:00:43]} 40. Qxf2 {[%emt 0:00:02] [#]} Nf3 $2 {[%emt 0:00:31]} ({Black should play} 40... Qh5 $1 $19 {White must now prevent ...h6.} 41. Na4 c4 42. bxc4 h6) 41. Qg3 $11 {[%emt 0:07:22]} Bd5 $2 {[%emt 0:09:32][%mdl 8192]} (41... Kf7 $11 {and Black stays safe.} 42. Nc4 (42. Rxc5 Qxe3 43. Rc7+ Ke8 $11) 42... Bc6) 42. Qb8+ $2 {[%emt 0:04:22]} (42. Rxc5 $18 Be6 {[#]} 43. Nxd3 $1 {[%mdl 512]} (43. Qb8+ Kf7 $11) 43... Qxe3 44. Qb8+ Kf7 45. Rc7+ (45. Ne5+ Nxe5 46. Qxe5 Qf3+ 47. Kg1 Qe3+ 48. Kh1 Qf3+ 49. Kg1 Qe3+ 50. Kh1 $11) 45... Kg6 46. Qe8+ Kg5 47. Qe7+ (47. Rxg7+ Kh6 $11) 47... Kh5 48. Qc5+ Qxc5 49. Nxc5) 42... Kf7 {[%emt 0:02:04]} 43. Qxa7+ {[%emt 0:00:03]} Kf6 {[%emt 0:01:17][%csl Gf3][%cal Rh6h2]} 44. Qb6+ $1 {[%emt 0:00:18]} Be6 {[%emt 0:00:08][%csl Gf3][%cal Rh6h2]} 45. Qd8+ $1 {[%emt 0:00:07]} Kf7 {[%emt 0:02:48][%csl Gf3][%cal Rh6h2]} 46. Qc7+ {[%emt 0:00:14]} Kf6 {[%emt 0:00:19]} 47. Qd8+ {[%emt 0:06:45]} Kf7 {[%emt 0:00:05][%csl Gf3][%cal Rh6h2]} 48. Qc7+ {[%emt 0:00:05]} Kf6 {[%emt 0:00:06]} 49. Nd1 {[%emt 0:10:47]} c4 {[%emt 0:02:38]} (49... d2 $11 {remains equal.} 50. Qd8+ (50. Rxc5 $2 Qh3 $19) 50... Kf7 51. Qc7+ Ke8 52. Qb8+ (52. Rxc5 $2 Qh3 $19) 52... Kf7 53. Qc7+ (53. Rxc5 $2 Qh3 $19) 53... Ke8) 50. bxc4 $16 {[%emt 0:02:06]} Ne5 {[%emt 0:00:03]} 51. Qd8+ {[%emt 0:02:00]} (51. Qd6 Qh3 52. Nf2 Qf3+ 53. Kg1 Qxe3 $17) 51... Kf7 {[%emt 0:00:24]} (51... Kf5 $11) 52. Qc7+ $14 {[%emt 0:00:34]} Kf6 $1 {And now ...Qh3 would win.} (52... Nd7 53. Kg1 $14) 53. Nc3 {[%emt 0:01:20]} (53. Qd6 Qh3 54. Nf2 Qf3+ 55. Kg1 Qxe3 $15) 53... Qxe3 {[%emt 0:01:09]} 54. Rf1+ {[%emt 0:00:16]} Nf3 {[%emt 0:00:04] ...d2 is the strong threat.} 55. Qc6 {[%emt 0:01:05] Threatens to win with Nd5+.} Ke5 {[%emt 0:01:05]} 56. Qc7+ {[%emt 0:00:32]} Kf6 $1 {[%emt 0:00:12] Strongly threatening ...d2.} 57. Qc6 {[%emt 0:00:34]} (57. Qd6 $1 $14 {should be considered.} Kf7 58. Qe5 (58. Nd5 Bxd5 59. cxd5 g6 $11) 58... Qg1+ 59. Rxg1 Nxe5 60. Nxe4) 57... Ke5 $1 $11 {[%emt 0:00:05]} 58. Qb5+ {[%emt 0:00:18]} Kf4 {[%emt 0:01:13] [#] Hoping for ...d2. Really sharp!} 59. Qd5 $1 {[%emt 0:01:11]} d2 $40 {[%emt 0:01:21][%mdl 128] White needs to defend precisely.} 60. Qd6+ $1 {[%emt 0:00:29]} (60. Qxe6 Qxc3 61. a3 Qd3 62. Qf7+ Ke3 63. Qa7+ Nd4 $19) 60... Kf5 $1 {[%emt 0:00:17]} 61. Nd5 {[%emt 0:00:27][%mdl 8192]} (61. Nb5 $11 Bxc4 62. Nd4+ (62. Qd7+ Kf6 $11) 62... Kg5 63. Qg3+ Kh5 64. Qh3+ Kg5 65. Qf5+ Kh6 66. Qh3+ Kg5 67. Qf5+ Kh6 68. Qh3+ Kg5) 61... Qe1 {[%emt 0:01:47][%cal Re1f1]} 62. Qf4+ {[%emt 0:00:35]} Kg6 {[%emt 0:00:04][%cal Re1f1]} 63. Ne7+ {[%emt 0:00:30]} Kh5 {[%emt 0:00:04] Weighted Error Value: White=0.34/Black=0.23 (precise)} 0-1

[Event "13th Asrian Memorial 2022"]
[Site "Yerevan"]
[Date "2022.06.10"]
[Round "4.1"]
[White "Sargsyan, Shant"]
[Black "Shahinyan, David"]
[Result "1-0"]
[ECO "E94"]
[WhiteElo "2641"]
[BlackElo "2479"]
[Annotator "TA"]
[PlyCount "103"]
[EventDate "2022.06.07"]
[EventType "swiss"]
[EventCountry "ARM"]
[SourceTitle "playchess.com"]
[Source "ChessBase"]
[SourceQuality "1"]
[TimeControl "40/5400+30:1800+30"]

{[%evp 18,103,56,65,89,71,98,71,72,75,69,36,33,39,40,41,44,29,40,0,27,14,25,8,23,16,57,57,56,61,57,64,64,53,62,59,95,76,84,80,81,72,75,72,58,65,62,77,76,59,52,50,70,70,79,41,99,106,152,47,217,185,279,278,464,474,446,282,258,259,368,241,257,0,368,360,360,359,775,708,1393,1318,1158,768,697,682,569,422]} 1. d4 {[%emt 0:04:39]} Nf6 {[%emt 0:01:12]} 2. Nf3 {[%emt 0:00:17]} d6 {[%emt 0:00:48]} 3. c4 {[%emt 0:00:28]} g6 {[%emt 0:00:27]} 4. Nc3 {[%emt 0:00:15]} Bg7 {[%emt 0:00:09]} 5. e4 {[%emt 0:00:53]} O-O {[%emt 0:00:43]} 6. Be2 {[%emt 0:00:21]} Nbd7 {[%emt 0:02:34]} 7. O-O {[%emt 0:00:29]} e5 {[%emt 0:00:09]} 8. Be3 {[%emt 0:00:29]} Qe7 {[%emt 0:00:11]} 9. Qc2 {[%emt 0:03:02]} c6 {[%emt 0:00:40]} 10. d5 {[%emt 0:04:35]} c5 {[%emt 0:00:26] E94: King's Indian: Classical: 6 Be2 e5 7 0-0: Various Black 7th moves.} 11. Ne1 {[%emt 0:01:14]} Kh8 {[%emt 0:00:38]} 12. Nd3 {[%emt 0:00:59]} Ng8 {[%emt 0:00:24] White is better.} 13. Qd2 {[%emt 0:03:09] 0x0.00166b9bf8d7dp-1022s more active pieces.} f5 {[%emt 0:02:09]} 14. exf5 {[%emt 0:00:24]} gxf5 {[%emt 0:00:15] Hoping for ...f4.} 15. f4 {[%emt 0:00:17]} e4 {[%emt 0:00:03]} 16. Nf2 {[%emt 0:00:29]} Ndf6 {[%emt 0:00:05] [#]} 17. Rae1 $146 {[%emt 0:04:31]} ({Predecessor:} 17. a3 b6 18. b4 h5 19. h3 Nh6 20. bxc5 bxc5 21. Rfb1 Rg8 22. Ra2 Kh7 23. Bd1 Bh8 24. Nh1 {0-1 (46) Pauly,C (2305)-Ondersteijn,N (2376) Maastricht 2022}) 17... Bd7 {[%emt 0:00:52]} 18. Qc2 {[%emt 0:01:51]} a6 {[%emt 0:05:05][%cal Ob7b5]} 19. a4 {[%emt 0:01:11]} Qf7 {[%emt 0:06:54][%cal Ob7b5]} 20. a5 {[%emt 0:01:31]} b5 {[%emt 0:13:21]} 21. axb6 {[%emt 0:00:32] White wants to play Qb3.} ({Not} 21. cxb5 axb5 22. Bxb5 Nxd5 $19) 21... a5 {[%emt 0:00:01]} 22. b7 {[%emt 0:03:16]} Rab8 {[%emt 0:12:17]} 23. Ra1 {[%emt 0:01:53]} ({Much weaker is} 23. Qb3 Be8 $11) 23... Rxb7 {[%emt 0:02:52]} 24. Rxa5 {[%emt 0:00:18]} Rfb8 {[%emt 0:00:03]} 25. Ra2 {[%emt 0:03:55]} Ne7 {[%emt 0:05:34]} 26. Rfa1 {[%emt 0:03:02]} Qg8 {[%emt 0:01:30]} 27. Ncd1 {[%emt 0:02:55]} Nexd5 {[%emt 0:09:45]} 28. cxd5 {[%emt 0:00:30]} Nxd5 {[%emt 0:00:30][%cal Bf6d5,Bd5b4,Bb4c2][%mdl 32]} 29. Bc4 {[%emt 0:00:30]} Nb4 {[%emt 0:00:30][%csl LRa2,LRc2]} 30. Bxg8 {[%emt 0:00:30]} Nxc2 {[%emt 0:00:30]} 31. Bd5 {[%emt 0:00:30]} Rb6 {[%emt 0:00:30]} 32. Rb1 {[%emt 0:00:30]} ({But not} 32. Ra7 Nxa1 33. Rxd7 Nc2 $11) 32... Nb4 {[%emt 0:00:30]} 33. Ra7 {[%emt 0:00:30][%cal Ba2a7,Ba7d7,Bd7f7][%mdl 32]} Nxd5 {[%emt 0:00:30]} 34. Rxd7 {[%emt 0:00:30] And now Bxc5 would win.} Bd4 {[%emt 0:31:44]} 35. Bxd4+ {[%emt 0:13:18]} cxd4 {[%emt 0:00:04]} 36. g3 {[%emt 0:07:22]} (36. Rf7 $5 {[%cal Rf7f5]}) 36... e3 {[%emt 0:02:23]} (36... Ra8 $14) 37. Nd3 $16 {[%emt 0:00:51]} Re8 {[%emt 0:00:08] [#]} ({Black should play} 37... Nb4) 38. Ra1 {[%emt 0:03:10]} (38. b3 $1 $16) 38... Rc6 $2 {[%emt 0:02:15]} ({Better is} 38... Nb4 $1 $14) 39. Rf7 {[%emt 0:05:09]} Rc2 {[%emt 0:00:42]} (39... Ne7 {was worth a try.} 40. Nxe3 dxe3) 40. Rxf5 $18 {[%emt 0:00:00]} Rd2 $2 {[%emt 0:00:00]} (40... e2 41. N1f2 Ne3) 41. Rxd5 {[%emt 0:05:33] Strongly threatening Ne1.} Rxd3 {[%emt 0:01:07] [#]} 42. Nxe3 {[%emt 0:00:40]} Rexe3 {[%emt 0:02:26]} 43. Rxd6 {[%emt 0:00:16][%mdl 4096] Endgame KRR-KRR} Re8 {[%emt 0:02:51]} (43... Rd2 $142 44. Rd7 Re8) 44. Rf1 {[%emt 0:00:47]} Re2 {[%emt 0:01:01]} 45. Ra1 {[%emt 0:10:07]} (45. Rc1 $142) 45... Re8 $1 {[%emt 0:06:36]} 46. Kg2 {[%emt 0:00:25] Threatens to win with Ra7.} Rd2+ {[%emt 0:02:24]} 47. Kh3 {[%emt 0:00:07]} Rxb2 $2 {[%emt 0:03:20]} (47... Re7 48. b4 Kg7) 48. Ra7 {[%emt 0:00:21] White is clearly winning.} Rb5 {[%emt 0:05:22]} 49. Rxd4 {[%emt 0:00:24]} Rh5+ {[%emt 0:00:29]} 50. Kg2 {[%emt 0:00:07]} Re2+ {[%emt 0:00:22]} 51. Kf3 {[%emt 0:00:11] Threatening mate with Rd8+.} Re8 {[%emt 0:00:01] Against Rd8} 52. Rd2 {[%emt 0:01:09] Weighted Error Value: White=0.25 (precise) /Black=0.29 (precise)} 1-0

[Event "13th Asrian Memorial 2022"]
[Site "Yerevan"]
[Date "2022.06.10"]
[Round "4.2"]
[White "Derbenev Andrey"]
[Black "Davtyan, Artur"]
[Result "1/2-1/2"]
[ECO "E15"]
[WhiteElo "2376"]
[BlackElo "2488"]
[Annotator "TA"]
[PlyCount "142"]
[EventDate "2022.06.07"]
[EventType "swiss"]
[EventCountry "ARM"]
[SourceTitle "playchess.com"]
[Source "ChessBase"]
[SourceQuality "1"]
[TimeControl "40/5400+30:1800+30"]

{[%evp 11,142,37,26,0,3,0,0,0,6,12,48,48,49,33,52,4,9,0,0,0,0,-16,0,-22,-24,-66,-72,-70,-66,-242,-206,-285,-270,-275,-274,-269,-262,-271,-278,-276,-281,-257,-253,-402,-393,-370,-102,-104,-67,-103,-104,-116,-120,-119,-95,-114,-89,-89,-89,-89,-91,-94,-87,-93,-37,-37,-8,-8,-8,-37,-30,-30,-30,-30,-30,-30,-30,-30,-30,-30,-30,-32,-32,-179,-179,-207,-207,-210,-210,-210,-210,-210,-210,-210,-210,-210,-210,-225,-210,-210,-194,-194,-194,-279,-261,-279,-279,-279,-279,-279,-279,-279,-279,-279,-279,-279,-279,-279,-261,-261,-261,-261,-261,-279,-279,-279,0,-279,0,-261,0,-279,0]} 1. d4 {[%emt 0:29:01]} Nf6 {[%emt 0:00:14]} 2. Nf3 {[%emt 0:00:12]} e6 {[%emt 0:00:27]} 3. c4 {[%emt 0:00:07]} b6 {[%emt 0:01:33]} 4. g3 {[%emt 0:00:05]} Ba6 {[%emt 0:00:59]} 5. b3 {[%emt 0:00:40]} c6 {[%emt 0:01:08]} 6. Bg2 {[%emt 0:00:17]} d5 {[%emt 0:00:27]} 7. Ne5 {[%emt 0:07:52] 7.Nbd2 gains popularity. E15: Queen's Indian: 4 g3 sidelines, 4 g3 Ba6 and 4 g3 Bb7 early deviations.} Nbd7 {[%emt 0:10:10]} 8. O-O {[%emt 0:15:05]} ({Much weaker is} 8. Nxc6 Qc7 9. Ne5 (9. cxd5 Nxd5 10. e4 Qxc6 $17) 9... Nxe5 $17) 8... Nxe5 {[%emt 0:10:24]} 9. dxe5 {[%emt 0:00:08] The position is equal.} Nd7 {[%emt 0:00:18]} 10. Bb2 {[%emt 0:09:49]} Qc7 {[%emt 0:19:46]} 11. cxd5 cxd5 {[#]} 12. Nc3 $146 ({Predecessor:} 12. f4 Rc8 13. Nc3 Bb4 14. Rc1 Qc5+ 15. Kh1 Qa5 16. Rf3 Ba3 17. Bxa3 Qxa3 18. Rc2 {0-1 (73) Caletka,R (2357)-Druska,J (2293) Liptovsky Mikulas 2011}) 12... Rd8 ({Less strong is} 12... Qxe5 13. Nxd5 $1 Qxb2 14. Nc7+ Ke7 15. Rb1 $16 (15. Bxa8 Bxe2 16. Qc1 Qxc1 $16) (15. Nxa6 Rd8 $16)) 13. Rc1 {[%emt 0:01:39]} (13. Qd4 $14 {is more appropriate.}) 13... Qb8 $1 $11 {[%emt 0:06:34]} 14. Nxd5 {[%emt 0:17:00]} exd5 {[%emt 0:01:39]} 15. Qxd5 {[%emt 0:00:10] aiming for e6.} Be7 $1 {[%emt 0:02:48] ...0-0 is the strong threat.} (15... Bxe2 $2 16. e6 Be7 17. Bxg7 $18) 16. e6 {[%emt 0:01:54]} Nf6 {[%emt 0:04:57]} 17. exf7+ {[%emt 0:02:04]} Kf8 18. Qe6 {[%emt 0:00:36]} Qd6 {[%emt 0:01:07]} 19. Qf5 {[%emt 0:02:10]} Kxf7 {[%emt 0:11:22]} (19... g6 $2 20. Qf3 Kxf7 21. Rc6 $18) 20. e4 $2 {[%emt 0:00:07]} Qd7 {[%emt 0:08:55]} 21. Qf4 {[%emt 0:00:24]} Bxf1 {[%emt 0:02:50]} 22. Bxf1 {[%emt 0:01:02]} Qd2 {[%emt 0:00:06]} 23. Bc4+ {[%emt 0:02:43]} Kf8 24. Qe5 {[%emt 0:00:37][%cal Oe5e6] Threatens to win with Qe6!} Bc5 {[%emt 0:00:11]} 25. Rf1 {[%emt 0:00:30]} Re8 {[%emt 0:00:55]} 26. Qc7 {[%emt 0:00:38][%csl Gc4][%cal Rc7f7]} Qd7 {[%emt 0:00:26] Against Qf7+} 27. Qf4 {[%emt 0:01:12]} (27. Qxd7 $142 Nxd7 28. Rd1) 27... Rxe4 $19 {[%emt 0:00:18]} 28. Qf3 {[%emt 0:00:04]} Bd4 {[%emt 0:03:08]} (28... Qg4 $19 29. Qg2 Re7) 29. Rd1 $17 {[%emt 0:00:51]} Qc6 {[%emt 0:01:09]} 30. Rxd4 {[%emt 0:00:31]} Re1+ {[%emt 0:00:12]} 31. Kg2 {[#]} Rg1+ $3 {[%emt 0:00:23][%mdl 512]} 32. Kxg1 {[%emt 0:00:04]} Qxf3 {[%emt 0:00:01]} 33. Rd8+ {[%emt 0:01:34]} Ke7 34. Bxf6+ {[%emt 0:00:15]} Qxf6 {[%emt 0:00:27]} 35. Rxh8 {[%emt 0:00:02][%mdl 4096] Endgame [#] KQ-KRB} Qa1+ $1 {[%emt 0:00:05]} 36. Kg2 {[%emt 0:00:05]} Qxa2 {[%emt 0:00:05]} 37. Rxh7 {[%emt 0:00:05]} Kf6 {[%emt 0:00:47]} ({Black should try} 37... Qa1 $17 38. Rh5 a5) 38. Rh4 $1 $15 {[%emt 0:01:06]} a6 {[%emt 0:01:41][%mdl 1024] Black has compensation.} 39. Rf4+ {[%emt 0:00:04]} Ke5 {[%emt 0:00:03]} 40. h4 {[%emt 0:00:13]} (40. Rg4 $5 {[%cal Rg4g7]}) 40... b5 {[%emt 0:00:03]} 41. Bf7 {[%emt 0:00:13]} a5 {[%emt 0:02:12]} 42. b4 $1 {[%emt 0:02:15]} Qa3 {[%emt 0:00:59]} 43. bxa5 {[%emt 0:00:08]} Qxa5 {[%emt 0:00:19]} 44. Kh2 {[%emt 0:03:07]} Qc3 {[%emt 0:00:33]} 45. Kg2 {[%emt 0:01:06]} Qd3 {[%emt 0:07:41]} 46. Kg1 {[%emt 0:01:56]} Kd6 {[%emt 0:00:46]} 47. Be8 {[%emt 0:02:02] [#]} (47. Kg2 $15) 47... Qb1+ $1 $19 {[%emt 0:00:13]} 48. Kh2 {[%emt 0:00:13]} b4 {[%emt 0:00:04]} 49. Bf7 {[%emt 0:00:05]} b3 {[%emt 0:00:21]} 50. Bxb3 {[%emt 0:00:11]} Qxb3 {[%emt 0:00:04] KQ-KR} 51. Kg2 {[%emt 0:00:05]} Ke5 {[%emt 0:00:03]} 52. Kg1 {[%emt 0:00:08]} Qb1+ {[%emt 0:00:03]} 53. Kg2 {[%emt 0:00:05]} Qd1 {[%emt 0:00:06]} 54. Rb4 {[%emt 0:02:18]} Kd5 {[%emt 0:03:22]} 55. Rf4 {[%emt 0:00:33]} Kc5 {[%emt 0:00:05]} 56. Rf5+ {[%emt 0:06:28]} Kc4 {[%emt 0:00:47]} 57. Rf4+ {[%emt 0:00:05]} (57. Rg5 {might work better.}) 57... Kc3 {[%emt 0:00:27] Hoping for ...Qd5+.} 58. Rf3+ {[%emt 0:00:05]} Kc2 {[%emt 0:00:15] And now ...Qd5 would win.} 59. Re3 {[%emt 0:00:08]} Qd5+ {[%emt 0:00:05]} 60. Kg1 {[%emt 0:00:28]} Kd2 {[%emt 0:01:34]} 61. Re7 {[%emt 0:01:56]} g6 {[%emt 0:05:31]} 62. Re3 {[%emt 0:00:19]} Qa2 {[%emt 0:04:50]} 63. Kg2 {[%emt 0:00:52]} Qa8+ {[%emt 0:00:09]} 64. Kg1 {[%emt 0:00:05]} Qa1+ {[%emt 0:02:54]} 65. Kg2 {[%emt 0:00:19]} Qc1 {[%emt 0:00:06]} 66. Re7 {[%emt 0:01:24]} Qc6+ {[%emt 0:00:06]} 67. Kg1 {[%emt 0:00:06]} Qc5 {[%emt 0:00:23]} 68. Re3 {[%emt 0:00:17]} Qc6 {[%emt 0:00:53]} 69. Re7 $1 {[%emt 0:01:26]} Qc1+ {[%emt 0:02:56]} 70. Kg2 {[%emt 0:00:22]} Qc6+ {[%emt 0:00:11]} 71. Kg1 $1 {[%emt 0:00:05]} Qc1+ $2 {[%emt 0:00:06] Weighted Error Value: White=0.25 (precise) /Black=0.14 (very precise)} (71... Qf6 $19 72. Re8 Qb6) 1/2-1/2